Workbook

Sheet Лист1
A1: Школа | C1: МБОУ СОШ с.Сикияз | F1: Утвердил: | G1: должность | H1: Директор
A2: Типовое примерное меню приготавливаемых блюд | G2: фамилия | H2: Балчугова И.Ю.
A3: Возрастная категория | E3: для младших классов | G3: дата | H3: 2026-01-12
A5: Неделя | B5: День недели | C5: Прием пищи | D5: Раздел меню | E5: Блюда | F5: Вес блюда, г | G5: Белки | H5: Жиры | I5: Углеводы | J5: Калорийность | K5: № рецептуры | L5: Цена
A6: 1 | B6: 1 | C6: Завтрак | D6: гор.блюдо | E6: каша рисовая рассыпчатая с овощами | F6: 180 | G6: 7.20 | H6: 6.00 | I6: 38.40 | J6: 276.00 | K6: №297 | L6: 15.00
E7: куриное филе,тушеное с овощами | F7: 90 | G7: 20.43 | H7: 26.34 | I7: 3.36 | J7: 333.00 | L7: 58.00
D8: гор.напиток | E8: напиток чайный " витаминный" | F8: 200 | G8: 6.00 | H8: 0.20 | I8: 27.00 | J8: 111.00 | K8: №685 | L8: 6.10
D9: хлеб | E9: хлеб пшеничный обогащенный витаминами для детского питания | F9: 50 | G9: 4.05 | H9: 0.70 | I9: 26.55 | J9: 129.00 | K9: №1,1 | L9: 2.92
D13: итого | F13: =SUM(F6:F12) -> 520 | G13: =SUM(G6:G12) -> 37.68 | H13: =SUM(H6:H12) -> 33.24 | I13: =SUM(I6:I12) -> 95.31 | J13: =SUM(J6:J12) -> 849.00 | L13: =SUM(L6:L12) -> 82.02
A14: =A6 -> 1 | B14: =B6 -> 1 | C14: Обед | D14: закуска
D15: 1 блюдо
D16: 2 блюдо
D17: гарнир
D18: напиток
D19: хлеб бел.
D20: хлеб черн.
D23: итого
A24: =A6 -> 1 | B24: =B6 -> 1 | C24: Итого за день:
A25: 1 | B25: 2 | C25: Завтрак | D25: гор.блюдо | E25: макаронные изделия отварные | F25: 180 | G25: 6.60 | H25: 4.70 | I25: 39.40 | J25: 230.00 | K25: 332 | L25: 8.50
E26: котлеты "Пермские" | F26: 100 | G26: 16.00 | H26: 15.50 | I26: 12.00 | J26: 253.00 | K26: 282 | L26: 60.00
E27: соус томатный с овощами | F27: 30 | G27: 0.37 | H27: 2.20 | I27: 1.42 | J27: 26.91 | K27: 420 | L27: 5.00
D28: гор.напиток | E28: кофейный напиток с молоком | F28: 200 | G28: 3.80 | H28: 3.50 | I28: 11.20 | J28: 91.20 | L28: 3.60
D29: хлеб | E29: хлеб пшеничный обогащенный витаминами для детского питания | F29: 50 | G29: 4.05 | H29: 0.70 | I29: 26.55 | J29: 129.00 | K29: 1.1 | L29: 2.92
D32: итого | F32: =SUM(F25:F31) -> 560 | G32: =SUM(G25:G31) -> 30.82 | H32: =SUM(H25:H31) -> 26.60 | I32: =SUM(I25:I31) -> 90.57 | J32: =SUM(J25:J31) -> 730.11 | L32: =SUM(L25:L31) -> 80.02
A33: =A25 -> 1 | B33: =B25 -> 2 | C33: Обед | D33: закуска
D34: 1 блюдо
D35: 2 блюдо
D36: гарнир
D37: напиток
D38: хлеб бел.
D39: хлеб черн.
D42: итого
A43: =A25 -> 1 | B43: =B25 -> 2 | C43: Итого за день:
A44: 1 | B44: 3 | C44: Завтрак | D44: гор.блюдо | E44: каша пшенная молочная вязкая | F44: 200 | G44: 8.30 | H44: 11.70 | I44: 37.50 | J44: 288.00 | K44: 311 | L44: 12.00
E45: запеканка из творога 9% со сгущенным молоком | F45: 90 | G45: 10.53 | H45: 7.60 | I45: 13.28 | J45: 163.20 | K45: 366 | L45: 25.00
D46: гор.напиток | E46: чай фруктовый "шиповник" | F46: 200 | G46: 6.00 | H46: 0.20 | I46: 27.00 | J46: 111.00 | K46: 685 | L46: 5.50
D47: хлеб | E47: хлеб пшеничный обогащенный витаминами для детского питания | F47: 50 | G47: 4.05 | H47: 0.70 | I47: 26.55 | J47: 129.00 | K47: 1.1 | L47: 2.92
D51: итого | F51: =SUM(F44:F50) -> 540 | G51: =SUM(G44:G50) -> 28.88 | H51: =SUM(H44:H50) -> 20.20 | I51: =SUM(I44:I50) -> 104.33 | J51: =SUM(J44:J50) -> 691.20 | L51: =SUM(L44:L50) -> 45.42
A52: =A44 -> 1 | B52: =B44 -> 3 | C52: Обед | D52: закуска
D53: 1 блюдо
D54: 2 блюдо
D55: гарнир
D56: напиток
D57: хлеб бел.
D58: хлеб черн.
D61: итого
A62: =A44 -> 1 | B62: =B44 -> 3 | C62: Итого за день:
A63: 1 | B63: 4 | C63: Завтрак | D63: гор.блюдо | E63: рис припущенный | F63: 180 | G63: 4.52 | H63: 5.20 | I63: 46.70 | J63: 251.43 | K63: 466 | L63: 15.00
E64: фрикадельки из кур в томатном соусе | F64: 120 | G64: 9.27 | H64: 11.43 | I64: 5.46 | J64: 160.90 | K64: 471 | L64: 48.00
D65: гор.напиток | E65: кисель витаминизированный "Шиповник" | F65: 200 | G65: 0.10 | H65: 0.10 | I65: 23.60 | J65: 93.00 | L65: 6.00
D66: хлеб | E66: хлеб пшеничный обогащенный витаминами для детского питания | F66: 50 | G66: 4.05 | H66: 0.70 | I66: 26.55 | J66: 129.00 | K66: 1.1 | L66: 2.92
D70: итого | F70: =SUM(F63:F69) -> 550 | G70: =SUM(G63:G69) -> 17.94 | H70: =SUM(H63:H69) -> 17.43 | I70: =SUM(I63:I69) -> 102.31 | J70: =SUM(J63:J69) -> 634.33 | L70: =SUM(L63:L69) -> 71.92
A71: =A63 -> 1 | B71: =B63 -> 4 | C71: Обед | D71: закуска
D72: 1 блюдо
D73: 2 блюдо
D74: гарнир
D75: напиток
D76: хлеб бел.
D77: хлеб черн.
D80: итого
A81: =A63 -> 1 | B81: =B63 -> 4 | C81: Итого за день:
A82: 1 | B82: 5 | C82: Завтрак | D82: салат | E82: салат "Пестрый" | F82: 60 | G82: 0.70 | H82: 2.70 | I82: 6.40 | J82: 55.00 | L82: 15.00
D83: гор.блюдо | E83: картофельное пюре с маслом | F83: 155 | G83: 3.00 | H83: 4.90 | I83: 19.99 | J83: 138.00 | K83: 520 | L83: 15.00
E84: котлета рыбная | F84: 90 | G84: 14.28 | H84: 9.56 | I84: 13.72 | J84: 199.12 | K84: 388 | L84: 35.00
D85: гор.напиток | E85: чай с сахаром | F85: 200 | G85: 0.10 | H85: 0.00 | I85: 9.10 | J85: 35.00 | K85: 685 | L85: 2.50
D86: хлеб | E86: хлеб пшеничный обогащенный витаминами для детского питания | F86: 50 | G86: 4.05 | H86: 0.70 | I86: 26.55 | J86: 129.00 | K86: 1.1 | L86: 2.92
D89: итого | F89: =SUM(F82:F88) -> 555 | G89: =SUM(G82:G88) -> 22.13 | H89: =SUM(H82:H88) -> 17.86 | I89: =SUM(I82:I88) -> 75.76 | J89: =SUM(J82:J88) -> 556.12 | L89: =SUM(L82:L88) -> 70.42
A90: =A82 -> 1 | B90: =B82 -> 5 | C90: Обед | D90: закуска
D91: 1 блюдо
D92: 2 блюдо
D93: гарнир
D94: напиток
D95: хлеб бел.
D96: хлеб черн.
D97: булочное
D99: итого
A100: =A82 -> 1 | B100: =B82 -> 5 | C100: Итого за день:
A101: 2 | B101: 1 | C101: Завтрак | D101: гор.блюдо | E101: каша дружба | F101: 200 | G101: 5.00 | H101: 7.90 | I101: 23.90 | J101: 178.00 | K101: 54-16к-2020 | L101: 15.00
E102: сыр порционный | F102: 20 | G102: 4.60 | H102: 5.80 | I102: 0.00 | J102: 71.60 | K102: 54-1з-2020 | L102: 17.40
D103: гор.напиток | E103: напиток чайный "Витаминный" | F103: 200 | G103: 6.00 | H103: 0.20 | I103: 27.00 | J103: 111.00 | L103: 5.50
D104: хлеб | E104: хлеб пшеничный обогащенный витаминами для детского питания | F104: 50 | G104: 4.05 | H104: 0.70 | I104: 26.55 | J104: 129.00 | L104: 2.92
D105: сок | E105: сок | F105: 200 | G105: 0.80 | H105: 0.00 | I105: 23.00 | J105: 94.00 | L105: 22.00
D108: итого | F108: =SUM(F101:F107) -> 670 | G108: =SUM(G101:G107) -> 20.45 | H108: =SUM(H101:H107) -> 14.60 | I108: =SUM(I101:I107) -> 100.45 | J108: =SUM(J101:J107) -> 583.60 | L108: =SUM(L101:L107) -> 62.82
A109: =A101 -> 2 | B109: =B101 -> 1 | C109: Обед | D109: закуска
D110: 1 блюдо
D111: 2 блюдо
D112: гарнир
D113: напиток
D114: хлеб бел.
D115: хлеб черн.
D118: итого
A119: =A101 -> 2 | B119: =B101 -> 1 | C119: Итого за день:
A120: 2 | B120: 2 | C120: Завтрак | D120: гор.блюдо | E120: макаронные изделия отварные | F120: 180 | G120: 6.60 | H120: 4.70 | I120: 39.40 | J120: 230.00 | K120: 332 | L120: 8.00
E121: тефтели из говядины с рисом "Ёжики" | F121: 120 | G121: 9.45 | H121: 7.31 | I121: 10.91 | J121: 147.40 | K121: 286 | L121: 45.00
D122: гор.напиток | E122: компот из сухофруктов | F122: 200 | G122: 0.50 | H122: 0.10 | I122: 31.20 | J122: 121.00 | L122: 4.60
D123: хлеб | E123: хлеб пшеничный обогащенный витаминами для детского питания | F123: 50 | G123: 4.05 | H123: 0.70 | I123: 26.55 | J123: 129.00 | K123: 1.1 | L123: 2.92
D126: итого | F126: =SUM(F120:F125) -> 550 | G126: =SUM(G120:G125) -> 20.60 | H126: =SUM(H120:H125) -> 12.81 | I126: =SUM(I120:I125) -> 108.06 | J126: =SUM(J120:J125) -> 627.40 | L126: =SUM(L120:L125) -> 60.52
A127: =A120 -> 2 | B127: =B120 -> 2 | C127: Обед | D127: закуска
D128: 1 блюдо
D129: 2 блюдо
D130: гарнир
D131: напиток
D132: хлеб бел.
D133: хлеб черн.
D136: итого
A137: =A120 -> 2 | B137: =B120 -> 2 | C137: Итого за день:
A138: 2 | B138: 3 | C138: Завтрак | D138: салат | E138: салат "Витаминный" | F138: 60 | G138: 0.90 | H138: 2.70 | I138: 6.50 | J138: 56.00 | L138: 8.00
D139: гор.блюдо | E139: плов из курицы | F139: 200 | G139: 27.30 | H139: 8.10 | I139: 33.20 | J139: 314.60 | K139: 54-12м-2020 | L139: 65.00
D140: гор.напиток | E140: чай с сахаром | F140: 200 | G140: 0.10 | H140: 0.00 | I140: 9.10 | J140: 35.00 | K140: 685 | L140: 2.50
D141: хлеб | E141: хлеб пшеничный обогащенный витаминами для детск.питан | F141: 50 | G141: 4.05 | H141: 0.70 | I141: 26.55 | J141: 129.00 | K141: 1.1 | L141: 2.92
D145: итого | F145: =SUM(F138:F144) -> 510 | G145: =SUM(G138:G144) -> 32.35 | H145: =SUM(H138:H144) -> 11.50 | I145: =SUM(I138:I144) -> 75.35 | J145: =SUM(J138:J144) -> 534.60 | L145: =SUM(L138:L144) -> 78.42
A146: =A138 -> 2 | B146: =B138 -> 3 | C146: Обед | D146: закуска
D147: 1 блюдо
D148: 2 блюдо
D149: гарнир
D150: напиток
D151: хлеб бел.
D152: хлеб черн.
D155: итого
A156: =A138 -> 2 | B156: =B138 -> 3 | C156: Итого за день:
A157: 2 | B157: 4 | C157: Завтрак | D157: гор.блюдо | E157: каша гречневая рассыпчатая | F157: 185 | G157: 10.40 | H157: 6.80 | I157: 45.40 | J157: 288.00 | K157: 297 | L157: 12.00
E158: гуляш из говядины | F158: 90 | G158: 12.63 | H158: 12.78 | I158: 2.88 | J158: 173.10 | K158: 54 | L158: 65.00
D159: гор.напиток | E159: какао с молоком | F159: 200 | G159: 3.80 | H159: 3.50 | I159: 11.20 | J159: 91.20 | K159: 693 | L159: 5.60
D160: хлеб | E160: хлеб пшеничный обогащенный витаминами для детского питания | F160: 50 | G160: 4.05 | H160: 0.70 | I160: 26.55 | J160: 129.00 | K160: 1.1 | L160: 2.92
D164: итого | F164: =SUM(F157:F163) -> 525 | G164: =SUM(G157:G163) -> 30.88 | H164: =SUM(H157:H163) -> 23.78 | I164: =SUM(I157:I163) -> 86.03 | J164: =SUM(J157:J163) -> 681.30 | L164: =SUM(L157:L163) -> 85.52
A165: =A157 -> 2 | B165: =B157 -> 4 | C165: Обед | D165: закуска
D166: 1 блюдо
D167: 2 блюдо
D168: гарнир
D169: напиток
D170: хлеб бел.
D171: хлеб черн.
D174: итого
A175: =A157 -> 2 | B175: =B157 -> 4 | C175: Итого за день:
A176: 2 | B176: 5 | C176: Завтрак | D176: гор.блюдо | E176: картофельное пюре с маслом | F176: 185 | G176: 3.70 | H176: 5.90 | I176: 24.00 | J176: 166.00 | K176: 520 | L176: 14.00
E177: котлета "студенческая" | F177: 90 | G177: 14.06 | H177: 20.36 | I177: 15.41 | J177: 306.00 | K177: 173 | L177: 60.00
D178: гор.напиток | E178: чай фруктовый "Шиповник" | F178: 200 | G178: 6.00 | H178: 0.20 | I178: 27.00 | J178: 111.00 | K178: 685 | L178: 5.50
D179: хлеб | E179: хлеб пшеничный обогащенный витаминами для детского питания | F179: 50 | G179: 4.05 | H179: 0.70 | I179: 26.55 | J179: 129.00 | K179: 1.1 | L179: 2.92
D183: итого | F183: =SUM(F176:F182) -> 525 | G183: =SUM(G176:G182) -> 27.81 | H183: =SUM(H176:H182) -> 27.16 | I183: =SUM(I176:I182) -> 92.96 | J183: =SUM(J176:J182) -> 712.00 | L183: =SUM(L176:L182) -> 82.42
A184: =A176 -> 2 | B184: =B176 -> 5 | C184: Обед | D184: закуска
D185: 1 блюдо
D186: 2 блюдо
D187: гарнир
D188: напиток
D189: хлеб бел.
D190: хлеб черн.
D193: итого
A194: =A176 -> 2 | B194: =B176 -> 5 | C194: Итого за день:
